fUSD/lending_fUSD_20260106
["ID","MTS","AMOUNT","RATE_DAILY","PERIOD"]
[400519124,1767694241707,-340.89540856,0.00032876,120]
[400519126,1767694241718,-500.0,0.00032876,120]
[400519128,1767694241728,-425.23944173,0.00032876,120]
[400519130,1767694241738,-261.45268805,0.00032876,120]
[400519132,1767694241749,-419.62262903,0.00032876,120]
[400519135,1767694241763,-514.03461784,0.00032876,120]
[400519137,1767694241775,-493.35977203,0.00032876,120]
[400519139,1767694241785,-191.51257869,0.00032876,120]
[400519141,1767694241795,-314.83905817,0.00032876,120]
[400519143,1767694241805,-311.0167598,0.00032876,120]
[400519145,1767694241814,-422.72128449,0.00032876,120]
[400519147,1767694241825,-347.1100292,0.00032876,120]
[400519149,1767694241835,-575.38088782,0.00032876,120]
[400519152,1767694241847,-329.68631191,0.00032876,120]
[400519154,1767694241862,-500.0,0.00032876,120]
[400519156,1767694241874,-500.0,0.00032876,120]
[400519158,1767694241884,-179.64607356,0.00032876,120]
[400519161,1767694241894,-445.95076125,0.00032876,120]
[400519163,1767694241904,-372.03655352,0.00032876,120]
[400519165,1767694241914,-310.32045264,0.00032876,120]
[400519167,1767694241924,-255.2826741,0.00032876,120]
[400519169,1767694241934,-541.03441224,0.00032876,120]
[400519171,1767694241945,-491.05324656,0.00032876,120]
[400519173,1767694241955,-500.0,0.00032876,120]
[400519175,1767694241966,-284.48811304,0.00032876,120]
[400519177,1767694241976,-324.62482307,0.00032876,120]
[400519179,1767694241986,-500.0,0.00032876,120]
[400519181,1767694241997,-428.14627311,0.00032876,120]
[400519183,1767694242008,-500.0,0.00032876,120]
[400519185,1767694242018,-325.19083742,0.00032876,120]
[400519187,1767694242028,-500.0,0.00032876,120]
[400519190,1767694242041,-500.0,0.00032876,120]
[400519192,1767694242051,-644.93985632,0.00032876,120]
[400519194,1767694242062,-421.93434282,0.00032876,120]
[400519196,1767694242072,-549.68128688,0.00032876,120]
[400519198,1767694242082,-155.63853305,0.00032876,120]
[400519200,1767694242093,-500.0,0.00032876,120]
[400519203,1767694242103,-213.61000304,0.00032876,120]
[400519205,1767694242114,-500.0,0.00032876,120]
[400519207,1767694242123,-418.82574534,0.00032876,120]
[400519209,1767694242134,-227.49394535,0.00032876,120]
[400519211,1767694242144,-296.58649424,0.00032876,120]
[400519213,1767694242154,-462.960988,0.00032876,120]
[400519215,1767694242165,-500.0,0.00032876,120]
[400519217,1767694242175,-607.78566127,0.00032876,120]
[400519219,1767694242185,-317.47487323,0.00032876,120]
[400519221,1767694242199,-463.55821792,0.00032876,120]
[400519223,1767694242209,-630.59881406,0.00032876,120]
[400519226,1767694242220,-500.0,0.00032876,120]
[400519228,1767694242231,-423.03673568,0.00032876,120]
[400519230,1767694242241,-433.06398333,0.00032876,120]
[400519232,1767694242251,-595.40365537,0.00032876,120]
[400519234,1767694242262,-409.54705325,0.00032876,120]
[400519236,1767694242274,-500.0,0.00032876,120]
[400519239,1767694242284,-201.05258318,0.00032876,120]
[400519241,1767694242295,-471.42160722,0.00032876,120]
[400519243,1767694242306,-535.49311005,0.00032876,120]
[400519245,1767694242318,-254.27961525,0.00032876,120]
[400519247,1767694242328,-500.0,0.00032876,120]
[400519249,1767694242339,-503.97466925,0.00032876,120]
[400519251,1767694242350,-452.40732168,0.00032876,120]
[400519253,1767694242360,-462.43135737,0.00032876,120]
[400519254,1767694242371,-386.33603915,0.00032876,120]
[400519255,1767694242382,-277.51170465,0.00032876,120]
[400519256,1767694242393,-640.1912846,0.00032876,120]
[400519257,1767694242403,-500.0,0.00032876,120]
[400519258,1767694242414,-162.35895155,0.00032876,120]
[400519259,1767694242424,-205.4420771,0.00032876,30]
[400519260,1767694242436,-200.44097004,0.00032876,120]
[400519261,1767694242446,-399.41195697,0.00032876,120]
[400519262,1767694242457,-273.14836718,0.00032876,120]
[400519263,1767694242467,-500.0,0.00032876,120]
[400519264,1767694242478,-392.84717636,0.00032876,120]
[400519266,1767694242488,-526.61202827,0.00032876,120]
[400519268,1767694242499,-500.0,0.00032876,120]
[400519270,1767694242509,-500.0,0.00032876,30]
[400519272,1767694242520,-500.0,0.00032876,120]
[400519274,1767694242530,-454.9543105,0.00032876,30]
[400519276,1767694242540,-368.25794564,0.00032876,120]
[400519278,1767694242551,-602.4849991,0.00032876,120]
[400519280,1767694242561,-419.01527199,0.00032876,120]
[400519282,1767694242571,-500.0,0.00032876,120]
[400519285,1767694242582,-207.31058317,0.00032876,120]
[400519287,1767694242594,-500.0,0.00032876,120]
[400519289,1767694242604,-209.69432814,0.00032876,120]
[400519291,1767694242614,-500.0,0.00032876,120]
[400519293,1767694242625,-586.5327422,0.00032876,120]
[400519295,1767694242636,-500.0,0.00032876,120]
[400519297,1767694242646,-182.53261081,0.00032876,120]
[400519300,1767694242657,-500.0,0.00032876,120]
[400519302,1767694242668,-178.6916112,0.00032876,120]
[400519304,1767694242679,-166.8935474,0.00032876,120]
[400519306,1767694242689,-537.92730478,0.00032876,120]
[400519308,1767694242699,-500.0,0.00032876,120]
[400519310,1767694242710,-530.26358259,0.00032876,120]
[400519312,1767694242720,-259.34436426,0.00032876,120]
[400519315,1767694242731,-471.82674374,0.00032876,120]
[400519317,1767694242741,-500.0,0.00032876,120]
[400519319,1767694242751,-415.54204798,0.00032876,120]
[400519321,1767694242761,-500.0,0.00032876,120]
[400519323,1767694242771,-500.0,0.00032876,120]
[400519325,1767694242782,-232.40463677,0.00032876,120]
[400519327,1767694242792,-191.3370625,0.00032876,120]
[400519329,1767694242803,-500.0,0.00032876,120]
[400519331,1767694242814,-202.07983002,0.00032876,120]
[400519332,1767694242825,-443.00341065,0.00032876,120]
[400519333,1767694242835,-500.0,0.00032876,120]
[400519334,1767694242845,-318.46740918,0.00032876,120]
[400519335,1767694242855,-500.0,0.00032876,120]
[400519336,1767694242866,-442.57372699,0.00032876,120]
[400519337,1767694242877,-311.70718134,0.00032876,120]
[400519338,1767694242887,-304.24502892,0.00032876,120]
[400519339,1767694242898,-207.86455945,0.00032876,120]
[400519340,1767694242908,-161.35048156,0.00032876,5]
[400519341,1767694242925,-576.73455643,0.00032876,120]
[400519342,1767694242941,-301.99697015,0.00032876,120]
[400519343,1767694242953,-479.62952139,0.00032876,120]
[400519344,1767694242965,-575.49352019,0.00032876,120]
[400519345,1767694242977,-500.0,0.00032876,120]
[400519346,1767694242989,-500.0,0.00032876,120]
[400519347,1767694243001,-315.00306262,0.00032876,120]
[400519348,1767694243013,-610.93112177,0.00032876,120]
[400519349,1767694243024,-416.19267609,0.00032876,120]
[400519350,1767694243036,-500.0,0.00032876,120]
[400519351,1767694243051,-424.506499,0.00032876,120]
[400519352,1767694243062,-500.0,0.00032876,120]
[400519353,1767694243073,-500.0,0.00032876,120]
[400519354,1767694243084,-500.0,0.00032876,120]
[400519355,1767694243095,-273.46885415,0.00032876,120]
[400519356,1767694243106,-500.0,0.00032876,120]
[400519357,1767694243118,-500.0,0.00032876,120]
[400519358,1767694243129,-321.66828552,0.00032876,120]
[400519359,1767694243139,-178.57618755,0.00032876,120]
[400519360,1767694243150,-207.52491983,0.00032876,120]
[400519361,1767694243161,-259.4538963,0.00032876,120]
[400519362,1767694243172,-500.0,0.00032876,120]
[400519363,1767694243183,-187.330003,0.00032876,120]
[400519364,1767694243199,-500.0,0.00032876,120]
[400519366,1767694243209,-176.30719718,0.00032876,120]
[400519368,1767694243221,-500.0,0.00032876,120]
[400519370,1767694243234,-188.23116911,0.00032876,120]
[400519371,1767694243245,-161.02871338,0.00032876,120]
[400519372,1767694243257,-511.13701441,0.00032876,120]
[400519373,1767694243271,-167.64140574,0.00032876,120]
[400519374,1767694243283,-412.29305338,0.00032876,120]
[400519375,1767694243292,-618.56444699,0.00032876,120]
[400519376,1767694243302,-400.0,0.00032876,120]
[400519377,1767694243311,-171.70594863,0.00032876,120]
[400519378,1767694243320,-500.0,0.00032876,120]
[400519379,1767694243329,-500.0,0.00032876,120]
[400519380,1767694243339,-291.20218874,0.00032876,120]
[400519381,1767694243349,-330.32503741,0.00032876,120]
[400519382,1767694243358,-500.0,0.00032876,120]
[400519383,1767694243369,-209.13016981,0.00032876,120]
[400519384,1767694243378,-500.0,0.00032876,120]
[400519385,1767694243387,-500.0,0.00032876,120]
[400519386,1767694243396,-171.30473152,0.00032876,120]
[400519387,1767694243406,-169.05548476,0.00032876,120]
[400519388,1767694243415,-188.13762857,0.00032876,120]
[400519389,1767694243424,-598.04287732,0.00032876,120]
[400519390,1767694243433,-625.99308682,0.00032876,120]
[400519391,1767694243442,-498.33830474,0.00032876,120]
[400519392,1767694243451,-500.0,0.00032876,120]
[400519393,1767694243461,-154.20171503,0.00032876,120]
[400519394,1767694243474,-468.41993227,0.00032876,120]
[400519395,1767694243483,-410.80377828,0.00032876,120]
[400519396,1767694243492,-612.38510768,0.00032876,30]
[400519397,1767694243749,-329.31686674,0.00032876,120]
[400519398,1767694243856,-213.01690641,0.00032876,120]
[400519399,1767694243874,-419.73332409,0.00032876,120]
[400519400,1767694243884,-500.0,0.00032876,120]
[400519401,1767694243893,-370.58168852,0.00032876,120]
[400519402,1767694243902,-436.14888465,0.00032876,120]
[400519403,1767694243912,-500.0,0.00032876,120]
[400519404,1767694243921,-628.5072727,0.00032876,120]
[400519405,1767694243930,-323.82959797,0.00032876,120]
[400519406,1767694243939,-500.0,0.00032876,120]
[400519407,1767694243949,-210.03797694,0.00032876,120]
[400519408,1767694243958,-308.51863115,0.00032876,120]
[400519409,1767694243968,-500.0,0.00032876,120]
[400519410,1767694243978,-260.30409215,0.00032876,120]
[400519411,1767694243989,-500.0,0.00032876,120]
[400519412,1767694243999,-500.0,0.00032876,120]
[400519413,1767694244008,-477.33116966,0.00032876,120]
[400519414,1767694244018,-168.75271151,0.00032876,120]
[400519415,1767694244027,-271.78478291,0.00032876,120]
[400519416,1767694244036,-510.09582236,0.00032876,120]
[400519417,1767694244045,-500.0,0.00032876,120]
[400519418,1767694244055,-209.31944877,0.00032876,120]
[400519419,1767694244063,-416.97175738,0.00032876,120]
[400519420,1767694244073,-500.0,0.00032876,120]
[400519421,1767694244082,-200.0,0.00032876,120]
[400519422,1767694244091,-319.47610448,0.00032876,120]
[400519423,1767694244100,-340.53051133,0.00032876,120]
[400519424,1767694244109,-419.59181321,0.00032876,120]
[400519425,1767694244118,-500.0,0.00032876,120]
[400519426,1767694244131,-265.39437171,0.00032876,120]
[400519427,1767694244141,-415.51949004,0.00032876,120]
[400519428,1767694244150,-433.5277843,0.00032876,120]
[400519429,1767694244160,-447.70493712,0.00032876,30]
[400519430,1767694244169,-500.0,0.00032876,120]
[400519431,1767694244178,-500.649396,0.00032876,120]
[400519432,1767694244187,-318.48157197,0.00032876,120]
[400519433,1767694244200,-500.0,0.00032876,120]
[400519434,1767694244209,-174.06707396,0.00032876,120]
[400519435,1767694244219,-332.60498302,0.00032876,120]
[400519436,1767694244228,-410.11650048,0.00032876,120]
[400519437,1767694244238,-500.0,0.00032876,120]
[400519438,1767694244247,-586.70621572,0.00032876,120]
[400519439,1767694244256,-500.0,0.00032876,120]
[400519440,1767694244266,-500.0,0.00032876,120]
[400519441,1767694244275,-500.0,0.00032876,120]
[400519442,1767694244284,-500.0,0.00032876,120]
[400519443,1767694244293,-500.0,0.00032876,120]
[400519444,1767694244303,-502.90852736,0.00032876,120]
[400519445,1767694244312,-500.0,0.00032876,120]
[400519446,1767694244321,-373.48514141,0.00032876,120]
[400519447,1767694244330,-280.14433661,0.00032876,120]
[400519448,1767694244339,-500.0,0.00032876,120]
[400519449,1767694244348,-431.76034416,0.00032876,120]
[400519450,1767694244357,-339.31383142,0.00032876,120]
[400519451,1767694244366,-500.0,0.00032876,120]
[400519452,1767694244375,-230.88295567,0.00032876,120]
[400519453,1767694244384,-500.0,0.00032876,120]
[400519454,1767694244393,-175.32934727,0.00032876,120]
[400519455,1767694244402,-622.88190124,0.00032876,120]
[400519456,1767694244411,-279.41583497,0.00032876,120]
[400519457,1767694244420,-500.0,0.00032876,120]
[400519458,1767694244429,-318.36943491,0.00032876,120]
[400519459,1767694244440,-392.44383431,0.00032876,120]
[400519460,1767694244449,-500.0,0.00032876,120]
[400519461,1767694244458,-503.80476531,0.00032876,120]
[400519462,1767694244468,-311.17305839,0.00032876,120]
[400519463,1767694244478,-541.33883991,0.00032876,120]
[400519464,1767694244489,-500.0,0.00032876,120]
[400519465,1767694244498,-535.81335574,0.00032876,120]
[400519466,1767694244507,-460.10321839,0.00032876,120]
[400519467,1767694244521,-500.0,0.00032876,120]
[400519468,1767694244532,-356.19025089,0.00032876,120]
[400519469,1767694244543,-500.0,0.00032876,14]
[400519470,1767694244553,-500.0,0.00032876,14]
[400519471,1767694244562,-321.85641914,0.00032876,120]
[400519472,1767694244571,-500.0,0.00032876,14]
[400519473,1767694244580,-354.78625081,0.00032876,120]
[400519474,1767694244590,-500.0,0.00032876,14]
[400519475,1767694244599,-500.0,0.00032876,14]
[400519476,1767694244608,-500.0,0.00032876,14]
[400519477,1767694244617,-500.0,0.00032876,14]
[400519478,1767694244627,-500.0,0.00032876,14]
[400519479,1767694244635,-500.0,0.00032876,14]
[400519480,1767694244647,-500.0,0.00032876,14]
[400519481,1767694244656,-500.0,0.00032876,14]
[400519482,1767694244665,-500.0,0.00032876,120]
[400519483,1767694244676,-500.0,0.00032876,120]
[400519484,1767694244686,-511.38110917,0.00032876,120]
[400519485,1767694244695,-648.19677477,0.00032876,120]
[400519486,1767694244705,-257.20553756,0.00032876,60]
[400519487,1767694244715,-500.0,0.00032876,120]
[400519488,1767694244726,-245.30580648,0.00032876,120]
[400519489,1767694244735,-500.0,0.00032876,120]
[400519490,1767694244744,-500.0,0.00032876,120]
[400519491,1767694244753,-175.15804378,0.00032876,120]
[400519492,1767694244763,-396.46993791,0.00032876,120]
[400519493,1767694244771,-550.84591127,0.00032876,120]
[400519494,1767694244781,-500.0,0.00032876,120]
[400519495,1767694244791,-500.0,0.00032876,120]
[400519496,1767694244802,-169.2211257,0.00032876,120]
[400519497,1767694244812,-596.23438471,0.00032876,120]
[400519498,1767694244822,-500.0,0.00032876,120]
[400519499,1767694244832,-214.45091061,0.00032876,120]
[400519500,1767694244843,-500.0,0.00032876,120]
[400519501,1767694244852,-537.16005836,0.00032876,120]
[400519502,1767694244863,-500.0,0.00032876,120]
[400519503,1767694244872,-235.93602194,0.00032876,120]
[400519504,1767694244882,-500.0,0.00032876,120]
[400519505,1767694244891,-373.28949252,0.00032876,120]
[400519506,1767694244903,-315.54492634,0.00032876,120]
[400519507,1767694244912,-372.0592487,0.00032876,120]
[400519508,1767694244921,-412.62452496,0.00032876,120]
[400519509,1767694244930,-415.74860407,0.00032876,120]
[400519510,1767694244940,-617.9300248,0.00032876,120]
[400519511,1767694244950,-500.0,0.00032876,120]
[400519512,1767694244959,-324.15719682,0.00032876,120]
[400519513,1767694244968,-500.0,0.00032876,120]
[400519514,1767694244978,-480.61462768,0.00032876,120]
[400519515,1767694244987,-500.0,0.00032876,120]
[400519516,1767694244996,-634.94714553,0.00032876,120]
[400519517,1767694245006,-394.77803106,0.00032876,120]
[400519518,1767694245016,-417.23631003,0.00032876,120]
[400519519,1767694245025,-500.0,0.00032876,120]
[400519520,1767694245035,-293.67948071,0.00032876,120]
[400519521,1767694245044,-289.43374447,0.00032876,120]
[400519522,1767694245053,-574.14127624,0.00032876,120]
[400519523,1767694245062,-500.0,0.00032876,120]
[400519524,1767694245072,-460.5415723,0.00032876,120]
[400519525,1767694245081,-428.94585352,0.00032876,120]
[400519526,1767694245091,-285.16384774,0.00032876,120]
[400519527,1767694245102,-243.3262314,0.00032876,120]
[400519528,1767694245111,-299.90778776,0.00032876,120]
[400519529,1767694245120,-325.41451042,0.00032876,120]
[400519530,1767694245129,-429.54101967,0.00032876,120]
[400519531,1767694245138,-500.0,0.00032876,120]
[400519533,1767694245147,-164.70093823,0.00032876,120]
[400519535,1767694245156,-500.0,0.00032876,120]
[400519537,1767694245165,-541.88994611,0.00032876,120]
[400519539,1767694245174,-507.78878668,0.00032876,120]
[400519541,1767694245183,-300.0,0.00032876,2]
[400519543,1767694245198,-300.0,0.00032876,2]
[400519544,1767694245207,-300.0,0.00032876,2]
[400519545,1767694245216,-300.0,0.00032876,2]
[400519546,1767694245225,-449.43082092,0.00032876,120]
[400519548,1767694245235,-500.0,0.00032876,120]
[400519549,1767694245244,-300.0,0.00032876,2]
[400519550,1767694245253,-410.91194275,0.00032876,120]
[400519551,1767694245263,-519.53508642,0.00032876,120]
[400519552,1767694245273,-300.0,0.00032876,2]
[400519553,1767694245283,-162.71120806,0.00032876,2]
[400519554,1767694245292,-408.98576713,0.00032876,120]
[400519555,1767694245303,-500.0,0.00032876,120]
[400519556,1767694245312,-408.04705115,0.00032876,120]
[400519557,1767694245321,-330.31845578,0.00032876,120]
[400519558,1767694245332,-212.76448587,0.00032876,120]
[400519559,1767694245341,-351.70447092,0.00032876,120]
[400519560,1767694245350,-500.0,0.00032876,120]
[400519561,1767694245359,-425.0824434,0.00032876,120]
[400519562,1767694245368,-500.0,0.00032876,120]
[400519563,1767694245377,-199.02693739,0.00032876,120]
[400519564,1767694245386,-612.59092142,0.00032876,120]
[400519566,1767694245395,-299.50643472,0.00032876,120]
[400519567,1767694245405,-455.76062859,0.00032876,120]
[400519568,1767694245414,-415.53419082,0.00032876,120]
[400519569,1767694245423,-500.0,0.00032876,120]
[400519570,1767694245432,-207.79293259,0.00032876,120]
[400519571,1767694245441,-500.0,0.00032876,120]
[400519572,1767694245450,-312.93115047,0.00032876,120]
[400519573,1767694245459,-523.32091886,0.00032876,120]
[400519574,1767694245468,-412.83052247,0.00032876,120]
[400519575,1767694245477,-500.0,0.00032876,120]
[400519576,1767694245486,-500.0,0.00032876,120]
[400519577,1767694245495,-500.0,0.00032876,120]
[400519578,1767694245504,-431.61489875,0.00032876,120]
[400519579,1767694245513,-303.42500127,0.00032876,120]
[400519580,1767694245522,-500.0,0.00032876,120]
[400519581,1767694245532,-194.19900153,0.00032876,120]
[400519582,1767694245541,-449.93141541,0.00032876,120]
[400519583,1767694245550,-381.93954697,0.00032876,120]
[400519584,1767694245559,-339.23806771,0.00032876,120]
[400519585,1767694245569,-409.7793543,0.00032876,120]
[400519586,1767694245578,-211.59631366,0.00032876,120]
[400519587,1767694245586,-500.0,0.00032876,120]
[400519588,1767694245596,-529.47583555,0.00032876,120]
[400519589,1767694245605,-533.45368168,0.00032876,120]
[400519590,1767694245614,-500.0,0.00032876,120]
[400519591,1767694245623,-365.30959048,0.00032876,120]
[400519592,1767694245633,-500.0,0.00032876,120]
[400519593,1767694245642,-162.03337487,0.00032876,120]
[400519594,1767694245652,-320.74211181,0.00032876,120]
[400519595,1767694245662,-500.0,0.00032876,120]
[400519596,1767694245671,-500.0,0.00032876,120]
[400519597,1767694245680,-500.0,0.00032876,120]
[400519598,1767694245690,-599.92617194,0.00032876,120]
[400519599,1767694245699,-500.0,0.00032876,120]
[400519600,1767694245709,-500.0,0.00032876,120]
[400519601,1767694245718,-457.29422773,0.00032876,120]
[400519602,1767694245727,-500.0,0.00032876,120]
[400519603,1767694245736,-446.00322884,0.00032876,120]
[400519604,1767694245746,-500.0,0.00032876,120]
[400519605,1767694245756,-253.8950797,0.00032876,120]
[400519606,1767694245765,-348.81930606,0.00032876,120]
[400519607,1767694245774,-326.40975456,0.00032876,120]
[400519608,1767694245784,-433.66846945,0.00032876,120]
[400519609,1767694245793,-458.19619521,0.00032876,120]
[400519610,1767694245803,-309.17900508,0.00032876,120]
[400519611,1767694245813,-245.99204984,0.00032876,120]
[400519612,1767694245823,-415.19482204,0.00032876,120]
[400519613,1767694245832,-500.0,0.00032876,120]
[400519614,1767694245843,-629.80567801,0.00032876,120]
[400519615,1767694245852,-503.60333731,0.00032876,120]
[400519616,1767694245862,-530.25012781,0.00032876,120]
[400519617,1767694245871,-255.38532123,0.00032876,120]
[400519618,1767694245881,-476.160126,0.00032876,120]
[400519619,1767694245890,-298.76088032,0.00032876,120]
[400519620,1767694245900,-185.46146019,0.00032876,120]
[400519621,1767694245909,-476.21141836,0.00032876,120]
[400519622,1767694245919,-453.9628489,0.00032876,120]
[400519623,1767694245928,-613.21609778,0.00032876,120]
[400519624,1767694245938,-284.33684328,0.00032876,120]
[400519625,1767694245947,-370.52509538,0.00032876,120]
[400519626,1767694245957,-196.58961316,0.00032876,120]
[400519627,1767694245966,-500.0,0.00032876,120]
[400519628,1767694245976,-253.14611224,0.00032876,120]
[400519629,1767694245985,-500.0,0.00032876,120]
[400519630,1767694245995,-261.13734708,0.00032876,120]
[400519631,1767694246004,-500.0,0.00032876,120]
[400519632,1767694246014,-190.75563564,0.00032876,120]
[400519633,1767694246023,-500.0,0.00032876,120]
[400519634,1767694246033,-232.90838877,0.00032876,120]
[400519635,1767694246043,-500.0,0.00032876,120]
[400519636,1767694246060,-500.0,0.00032876,120]
[400519637,1767694246072,-493.78741813,0.00032876,120]
[400519638,1767694246082,-500.0,0.00032876,120]
[400519639,1767694246092,-408.21960721,0.00032876,120]
[400519640,1767694246101,-469.4132792,0.00032876,120]
[400519641,1767694246111,-642.08166902,0.00032876,120]
[400519642,1767694246120,-583.64838281,0.00032876,120]
[400519643,1767694246130,-410.63778987,0.00032876,120]
[400519644,1767694246140,-189.21654562,0.00032876,120]
[400519645,1767694246149,-552.6321745,0.00032876,120]
[400519646,1767694246159,-583.56583199,0.00032876,120]
[400519647,1767694246169,-600.0,0.00032876,120]
[400519648,1767694246178,-336.20493757,0.00032876,120]
[400519649,1767694246190,-500.0,0.00032876,120]
[400519650,1767694246199,-333.41698254,0.00032876,120]
[400519651,1767694246209,-500.0,0.00032876,120]
[400519652,1767694246219,-515.18390696,0.00032876,120]
[400519653,1767694246230,-368.06050254,0.00032876,120]
[400519654,1767694246239,-500.0,0.00032876,120]
[400519655,1767694246249,-500.0,0.00032876,120]
[400519656,1767694246259,-500.0,0.00032876,120]
[400519657,1767694246269,-306.76578731,0.00032876,120]
[400519658,1767694246279,-383.89721345,0.00032876,120]
[400519659,1767694246288,-401.74016715,0.00032876,120]
[400519660,1767694246297,-424.50791432,0.00032876,120]
[400519661,1767694246307,-500.0,0.00032876,120]
[400519662,1767694246316,-276.5421957,0.00032876,120]
[400519663,1767694246326,-600.88449403,0.00032876,120]
[400519664,1767694246336,-463.18927024,0.00032876,120]
[400519665,1767694246347,-649.11204913,0.00032876,120]
[400519666,1767694246356,-150.62769992,0.00032876,120]
[400519667,1767694246366,-325.98816274,0.00032876,120]
[400519668,1767694246376,-500.0,0.00032876,120]
[400519669,1767694246385,-375.29608495,0.00032876,120]
[400519670,1767694246394,-404.41443051,0.00032876,120]
[400519671,1767694246404,-500.0,0.00032876,120]
[400519672,1767694246414,-500.0,0.00032876,120]
[400519673,1767694246424,-382.63599412,0.00032876,120]
[400519674,1767694246434,-500.0,0.00032876,120]
[400519675,1767694246444,-489.13621422,0.00032876,120]
[400519676,1767694246454,-195.35141783,0.00032876,120]
[400519677,1767694246465,-299.64851014,0.00032876,120]
[400519678,1767694246474,-500.0,0.00032876,120]
[400519679,1767694246484,-555.87571425,0.00032876,120]
[400519680,1767694246494,-445.00089157,0.00032876,120]
[400519681,1767694246504,-422.84131726,0.00032876,120]
[400519682,1767694246514,-194.96260855,0.00032876,120]
[400519683,1767694246524,-500.0,0.00032876,120]
[400519684,1767694246534,-335.00221324,0.00032876,120]
[400519685,1767694246543,-626.95037222,0.00032876,120]
[400519686,1767694246552,-423.55635538,0.00032876,120]
[400519687,1767694246561,-223.11419686,0.00032876,120]
[400519688,1767694246571,-500.0,0.00032876,120]
[400519689,1767694246580,-394.53988926,0.00032876,120]
[400519690,1767694246589,-614.84111179,0.00032876,120]
[400519691,1767694246599,-500.0,0.00032876,120]
[400519692,1767694246609,-500.0,0.00032876,120]
[400519693,1767694246619,-208.85136178,0.00032876,120]
[400519694,1767694246628,-411.32056737,0.00032876,120]
[400519695,1767694246638,-440.19337888,0.00032876,120]
[400519696,1767694246648,-636.08740643,0.00032876,120]
[400519697,1767694246658,-346.26001027,0.00032876,120]
[400519698,1767694246667,-500.0,0.00032876,120]
[400519699,1767694246676,-500.0,0.00032876,120]
[400519700,1767694246686,-575.03271464,0.00032876,120]
[400519701,1767694246695,-227.28587826,0.00032876,120]
[400519702,1767694246704,-253.390998,0.00032876,120]
[400519703,1767694246713,-387.1355216,0.00032876,120]
[400519704,1767694246723,-156.76229141,0.00032876,120]
[400519705,1767694246732,-329.80058972,0.00032876,120]
[400519706,1767694246741,-255.74852746,0.00032876,120]
[400519707,1767694246751,-355.69482671,0.00032876,120]
[400519708,1767694246760,-472.17662962,0.00032876,120]
[400519709,1767694246769,-420.31619687,0.00032876,120]
[400519710,1767694246778,-332.0432818,0.00032876,120]
[400519711,1767694246787,-500.0,0.00032876,120]
[400519712,1767694246796,-554.64892074,0.00032876,120]
[400519713,1767694246805,-373.27448264,0.00032876,120]
[400519714,1767694246815,-369.35462486,0.00032876,120]
[400519715,1767694246826,-426.46591468,0.00032876,120]
[400519716,1767694246835,-429.88832763,0.00032876,120]
[400519717,1767694246845,-548.81724703,0.00032876,60]
[400519718,1767694247038,-500.0,0.00032876,120]
[400519719,1767694247054,-294.01970977,0.00032876,120]
[400519720,1767694247064,-316.15540669,0.00032876,120]
[400519721,1767694247073,-500.0,0.00032876,120]
[400519722,1767694247083,-454.17613204,0.00032876,120]
[400519723,1767694247092,-191.33834045,0.00032876,120]
[400519724,1767694247101,-615.16158357,0.00032876,120]
[400519725,1767694247111,-415.18093092,0.00032876,120]
[400519726,1767694247120,-436.8421457,0.00032876,120]
[400519727,1767694247129,-498.21877663,0.00032876,120]
[400519728,1767694247139,-500.0,0.00032876,120]
[400519729,1767694247149,-539.60284115,0.00032876,120]
[400519730,1767694247158,-209.5237387,0.00032876,120]
[400519731,1767694247167,-500.0,0.00032876,120]
[400519732,1767694247177,-500.0,0.00032876,120]
[400519733,1767694247186,-290.17095602,0.00032876,120]
[400519734,1767694247200,-498.73997389,0.00032876,120]
[400519735,1767694247210,-539.12596131,0.00032876,120]
[400519736,1767694247220,-196.34,0.00032876,120]
[400519737,1767694247230,-324.12585397,0.00032876,120]